Workbook

Sheet 2024
A1: Школа | C1: МБОУ СОШ №127 | F1: Утвердил: | G1: должность | H1: Директор МБОУ СОШ №127 | M1: @
A2: Типовое примерное меню приготавливаемых блюд | G2: фамилия | H2: Чеботарев С.Н.
A3: Вариант питания | E3: завтрак | H3: 7 | I3: 10 | J3: 2024
E4: 7-11лет | H4: день | I4: месяц | J4: год
A5: Неделя | B5: День недели | C5: Прием пищи | D5: Раздел меню | E5: Блюда | F5: Вес блюда, г | G5: Белки | H5: Жиры | I5: Углеводы | J5: Калорийность | K5: № рецептуры | L5: Цена
A6: 2 | B6: 1 | C6: Завтрак | D6: Холодное блюдо | E6: Бутерброд с сыром (батон) | F6: 10/20 | G6: 3.36 | H6: 3.34 | I6: 13.06 | J6: 100.39 | K6: 31(2004) | L6: 12.71
D7: Блюда из птицы | E7: Фрикадельки из курицы с отрубями,.соусом сметанный с томатом | F7: 50/50 | G7: 9.5 | H7: 7.35 | I7: 9.7 | J7: 139.61 | K7: №63(2003) | L7: 34.01
D8: Блюда из круп | E8: Каша гречневая вязкая | F8: 150 | G8: 3.3 | H8: 4.9 | I8: 18.84 | J8: 146 | K8: 3464(1996) | L8: 11.4
D9: Напиток горячий | E9: Чай с сахаром | F9: 200/15 | G9: 0.2 | H9: 0.05 | I9: 14.82 | J9: 57.35 | K9: 685(2004) | L9: 2.95
D10: Покупные | E10: Хлеб пшеничный витаминизированный | F10: 20 | G10: 1.48 | H10: 0.24 | I10: 15.23 | J10: 72.09 | K10: ПРОМ. | L10: 1.44
D11: Покупные | E11: Хлеб ржаной | F11: 20 | G11: 1.29 | H11: 0.24 | I11: 8.17 | J11: 37.9 | K11: ПРОМ. | L11: 1.44
D12: Итого | G12: =SUM(G6:G11) -> 19.13 | H12: 16.12 | I12: 79.82 | J12: 553.34 | L12: 63.95
C14: Обед | D14: Первое блюдо | E14: Суп картофельный с горохом, гренками | F14: 250 | G14: 5.79 | H14: 4.66 | I14: 21.82 | J14: 148.13 | K14: 139(2004) | L14: 9.81
D15: Блюда из мяса | E15: Битоски Мясные паровые с отрубями (говядина,кура) | F15: 90 | G15: 14.78 | H15: 12.1 | I15: 7.94 | J15: 171.84 | K15: 424(1996) | L15: 59.07
D16: Блюда из круп | E16: Каша гречневая вязкая | F16: 150 | G16: 3.3 | H16: 4.9 | I16: 18.84 | J16: 146 | K16: 464(1996) | L16: 17.3
D17: Напиток | E17: Напиток лимонный | F17: 200 | G17: 0.14 | H17: 0.02 | I17: 15.45 | J17: 61.55 | K17: 1041(1982) | L17: 6.85
D18: Покупные | E18: Хлеб пшеничный витаминизированный | F18: 40 | G18: 4.46 | H18: 0.48 | I18: 30.46 | J18: 144.18 | K18: ПРОМ. | L18: 1.44
D19: Покупные | E19: Хлеб ржаной | F19: 20 | G19: 1.29 | H19: 0.24 | I19: 8.17 | J19: 37.9 | K19: ПРОМ. | L19: 1.44
D20: Итого | G20: =SUM(G14:G19) -> 29.76 | H20: 22.4 | I20: 102.68 | J20: 709.6 | L20: 95.91
C22: Итого за день: | G22: =G12+G20 -> 48.89 | H22: 38.52 | I22: 262.32 | J22: 1816.28 | L22: 159.86
A24: 2 | B24: 2 | C24: Завтрак | D24: Блюда из мяса | E24: Рулет из говядины паравой с соусом молочным, отрубями | F24: 50/40 | G24: 9.1 | H24: 9.42 | I24: 3.71 | J24: 119.87 | K24: 459(2004) | L24: 40.1
D25: Блюда из круп | E25: Рис припущенный с овощами | F25: 150 | G25: 3.8 | H25: 6.38 | I25: 30.84 | J25: 235.73 | K25: 36(2003) | L25: 17.3
D26: Напиток горячий | E26: Чай с сахором | F26: 200/15 | G26: 0.2 | H26: 0.05 | I26: 14.82 | J26: 57.35 | K26: 685(2004) | L26: 2.95
D27: Покупные | E27: Хлеб пшеничный витаминизированный | F27: 30 | G27: 3.34 | H27: 0.36 | I27: 22.84 | J27: 108.13 | K27: ПРОМ. | L27: 2.16
D28: Покупные | E28: Хлеб ржаной | F28: 20 | G28: 1.29 | H28: 0.24 | I28: 8.17 | J28: 37.9 | K28: ПРОМ. | L28: 1.44
D29: Итого | G29: =SUM(G24:G28) -> 17.73 | H29: 16.45 | I29: 80.38 | J29: 558.98 | L29: 63.95
C31: Обед | D31: Подгарнировка | E31: Салат из белокочанной капусты с куркумой | F31: 60 | G31: 0.96 | H31: 4 | I31: 5.41 | J31: 63.22 | K31: ттк | L31: 15.64
D32: Первое блюдо | E32: Рассольник ленинградский со сметаной | F32: 250/10 | G32: 2.38 | H32: 5.8 | I32: 19.47 | J32: 129.99 | K32: 129(1996) | L32: 18.37
D33: Блюда из мяса | E33: Рагу из птицы(феле) | F33: 200 | G33: 16.89 | H33: 13.47 | I33: 28.27 | J33: 300.48 | K33: 702(1982) | L33: 51
D34: Напиток | E34: Напиток из плодов шиповника | F34: 200 | G34: 0.31 | H34: 0.14 | I34: 26.07 | J34: 99.27 | K34: 705(2004) | L34: 5.86
D35: Покупные | E35: Хлеб пшеничный витаминизированный | F35: 40 | G35: 4.46 | H35: 0.48 | I35: 30.46 | J35: 144.18 | K35: ПРОМ. | L35: 2.88
D36: Покупные | E36: Хлеб ржаной | F36: 20 | G36: 1.29 | H36: 0.24 | I36: 8.17 | J36: 37.9 | K36: ПРОМ. | L36: 2.16
D37: Итого | G37: =SUM(G31:G36) -> 26.29 | H37: 24.13 | I37: =SUM(I32:I36) -> 112.44 | J37: 711.82 | L37: 95.91
C39: Итого за день: | G39: =G29+G37 -> 44.02 | H39: 40.58 | I39: 192.82 | J39: 1270.8 | L39: 159.86
A41: 2 | B41: 3 | C41: Завтрак | D41: Блюда из рыбы | E41: Тефтели рыбные из филе минтая с соусом сметанным с томатом, отрубями | F41: 50/50 | G41: 7.35 | H41: 10.75 | I41: 13.08 | J41: 165.45 | K41: 394(2004) | L41: 31.51
D42: Гарнир | E42: Пюре картофельное | F42: 150 | G42: 3.21 | H42: 5.33 | I42: 23.4 | J42: 153.04 | K42: 472(1996) | L42: 25.17
D43: Напиток горячий | E43: Чай с сахором | F43: 200/15 | G43: 0.2 | H43: 0.05 | I43: 14.82 | J43: 57.35 | K43: 685(2004) | L43: 2.95
D44: Покупные | E44: Хлеб пшеничный витаминизированный | F44: 20 | G44: 2.98 | H44: 0.31 | I44: 20.31 | J44: 96.12 | K44: ПРОМ. | L44: 2.88
D45: Покупные | E45: Хлеб ржаной | F45: 20 | G45: 1.94 | H45: 0.35 | I45: 12.26 | J45: 56.85 | K45: ПРОМ. | L45: 1.44
D46: Итого | G46: =SUM(G41:G45) -> 15.68 | H46: 16.79 | I46: 83.87 | J46: 528.81 | L46: 63.95
C48: Обед | D48: Первое блюдо | E48: Борщ с морской капустой, картофелем, сметаной | F48: 250/10 | G48: 1.97 | H48: 7.09 | I48: 14.26 | J48: 123.96 | K48: МР сб.тк.ч3 скат.218 | L48: 18.72
D49: Блюда из рыбы | E49: Тефтели рыбные(минтай) с соусом,отрубями | F49: 70/30 | G49: 12.48 | H49: 11.02 | I49: 17.22 | J49: 165.6 | K49: 394(2004) | L49: 37.22
D50: Гарнир | E50: Пюре картофельное | F50: 150 | G50: 3.21 | H50: 5.33 | I50: 23.4 | J50: 153.04 | K50: 472(1996) | L50: 25.17
D51: Напиток | E51: Компот из кураги | F51: 200 | G51: 1.02 | H51: 0.06 | I51: 28.19 | J51: 106.45 | K51: №588 (1996) | L51: 9.4
D52: Покупные | E52: Хлеб пшеничный витаминизированный | F52: 40 | G52: 4.46 | H52: 0.48 | I52: 30.46 | J52: 144.18 | K52: ПРОМ. | L52: 2.88
D53: Покупные | E53: Хлеб ржаной | F53: 20 | G53: 1.29 | H53: 0.24 | I53: 8.17 | J53: 37.9 | K53: ПРОМ. | L53: 2.52
D54: Итого | G54: =SUM(G48:G53) -> 24.43 | H54: 24.22 | I54: 121.7 | J54: 731.13 | L54: 95.91
C56: Итого за день: | G56: =G46+G54 -> 40.11 | H56: 41.01 | I56: 205.57 | J56: 1259.94 | L56: 159.86
A58: 2 | B58: 4 | C58: Завтрак | D58: Блюда из творога | E58: Запеканка из творога со сгущеным молоком | F58: 50/5 | G58: 9.3 | H58: 8.29 | I58: 9 | J58: 138.08 | K58: 297(1999) | L58: 24.04
D59: Блюда из круп | E59: Каша пшенная вязкая с маслом сливочным | F59: 200/5 | G59: 6.39 | H59: 10.01 | I59: 40.76 | J59: 267.15 | K59: 257(1996) | L59: 25.02
D60: Напиток горячий | E60: Чай с сахором | F60: 200/15 | G60: 0.2 | H60: 0.05 | I60: 14.82 | J60: 57.35 | K60: 685(2004) | L60: 12.37
D61: Покупные | E61: Хлеб пшеничный витаминизированный | F61: 20 | G61: 1.49 | H61: 0.16 | I61: 10.15 | J61: 48.06 | K61: ПРОМ. | L61: 1.44
D62: Покупные | E62: Хлеб ржаной | F62: 20 | G62: 1.29 | H62: 0.24 | I62: 8.17 | J62: 37.9 | K62: ПРОМ. | L62: 1.08
D64: Итого | G64: =SUM(G58:G63) -> 18.67 | H64: 18.75 | I64: 82.9 | J64: 548.54 | L64: =SUM(L58:L63) -> 63.95
C66: Обед | D66: Первое блюдо | E66: Суп из овощей со сметаной | F66: 250/10 | G66: 2.21 | H66: 6.33 | I66: 13.34 | J66: 116.09 | K66: 167(1996) | L66: 17.87
D67: Блюда из мяса | E67: Грудка цыпленка тушенная с овощами и соусом "ароматная" | F67: 50/50 | G67: 15.16 | H67: 10.92 | I67: 6.37 | J67: 204.7 | K67: ТТК | L67: 48.98
D68: Гарнир | E68: Макаронные изделия отварные | F68: 150 | G68: 5.51 | H68: 4.89 | I68: 36.65 | J68: 212.18 | K68: №469 (1996) | L68: 11.4
D69: Напиток | E69: Компот из смеси сухофруктов | F69: 200 | G69: 0.3 | H69: 1.56 | I69: 19.79 | J69: 88.69 | K69: №588 (1994) | L69: 12.26
D70: Покупные | E70: Хлеб пшеничный витаминизированный | F70: 30 | G70: 2.23 | H70: 0.24 | I70: 15.23 | J70: 72.09 | K70: ПРОМ. | L70: 2.88
D71: Покупные | E71: Хлеб ржаной | F71: 20 | G71: 1.29 | H71: 0.24 | I71: 8.17 | J71: 37.9 | K71: ПРОМ. | L71: 2.52
D72: Итого | G72: =SUM(G66:G71) -> 26.7 | H72: 24.18 | I72: 99.55 | J72: 731.65 | L72: =SUM(L66:L71) -> 95.91
C74: Итого за день: | G74: =G64+G72 -> 45.37 | H74: 42.93 | I74: 182.45 | J74: 1280.19 | L74: =L64+L72 -> 159.86
A76: 2 | B76: 5 | C76: Завтрак | D76: Блюда из яиц | E76: Омлет натуральный с маслом сливочным | F76: 150/5 | G76: 15.23 | H76: 19.2 | I76: 2.8 | J76: 251.71 | K76: №284 (1996) | L76: 44.28
D77: Фрукт | E77: Фрукты свежие (яблоко) | F77: 100 | G77: 0 | H77: 0.4 | I77: 12.56 | J77: 54.45 | L77: 12.54
D78: Напиток горячий | E78: Чай с сахором | F78: 200/15 | G78: 0.2 | H78: 0.05 | I78: 14.82 | J78: 57.35 | K78: 685(2004) | L78: 2.95
D79: Покупные | E79: Хлеб пшеничный витаминизированный | F79: 30 | G79: 2.23 | H79: 0.24 | I79: 15.23 | J79: 72.09 | K79: ПРОМ. | L79: 2.74
D80: Покупные | E80: Хлеб ржаной | F80: 20 | G80: 1.29 | H80: 0.24 | I80: 8.17 | J80: 37.9 | K80: ПРОМ. | L80: 1.44
D81: Итого | G81: =SUM(G76:G80) -> 18.95 | H81: 20.13 | I81: 53.58 | J81: 473.5 | L81: =SUM(L76:L80) -> 63.95
C83: Обед | D83: Первое блюдо | E83: Щи из свежей капусты с картофелем, сметаной | F83: 250/10 | G83: 2.01 | H83: 7.05 | I83: 11.08 | J83: 112.46 | K83: №120 (1996) | L83: 26.16
D84: Блюда из мяса | E84: Фрикадельки в соусе из говядины | F84: 50/50 | G84: 11.4 | H84: 9.55 | I84: 10.55 | J84: 134.51 | K84: 468(2004) | L84: 41.81
D85: Гарнир | E85: Рис припущенный с овощами | F85: 150 | G85: 3.8 | H85: 6.38 | I85: 40.84 | J85: 235.73 | K85: №36 (2003) | L85: 17.3
D86: Напиток | E86: Напиток лимонный | F86: 200 | G86: 0.14 | H86: 0.02 | I86: 15.45 | J86: 61.55 | K86: 1041(1982) | L86: 6.85
D87: Покупные | E87: Хлеб пшеничный витаминизированный | F87: 40 | G87: 4.46 | H87: 0.48 | I87: 30.46 | J87: 144.18 | K87: ПРОМ. | L87: 2.35
D88: Покупные | E88: Хлеб ржаной | F88: 20 | G88: 1.29 | H88: 0.24 | I88: 8.17 | J88: 37.9 | K88: ПРОМ. | L88: 1.44
D89: Итого | G89: =SUM(G83:G88) -> 23.1 | H89: 23.72 | I89: 116.55 | J89: 726.33 | L89: =SUM(L83:L88) -> 95.91
C91: Итого за день: | G91: =G81+G89 -> 42.05 | H91: 43.85 | I91: 170.13 | J91: 1199.83 | L91: =L81+L89 -> 159.86
A93: 1 | B93: 1 | C93: Завтрак | D93: Блюда из птицы | E93: Плов из филе цыплегка с куркумой | F93: 250 | G93: 19.21 | H93: 19.26 | I93: 58.11 | J93: 436.82 | K93: №449(1996) | L93: 58.12
D94: Напиток горячий | E94: Чай с сахором | F94: 200/15 | G94: 0.2 | H94: 0.05 | I94: 14.82 | J94: 57.35 | K94: 685(2004) | L94: 2.95
D95: Покупные | E95: Хлеб пшеничный витаминизированный | F95: 20 | G95: 1.49 | H95: 0.16 | I95: 10.15 | J95: 48.06 | K95: ПРОМ. | L95: 1.44
D96: Покупные | E96: Хлеб ржаной | F96: 20 | G96: 1.29 | H96: 0.24 | I96: 8.17 | J96: 37.9 | K96: ПРОМ. | L96: 1.44
D97: Итого | G97: =SUM(G93:G96) -> 22.19 | H97: 19.71 | I97: 91.25 | J97: 580.13 | L97: =SUM(L93:L96) -> 63.95
C99: Обед | D99: Первое блюдо | E99: Суп картофельный с макаронными изделиями на курином бульоне | F99: 250 | G99: 3.74 | H99: 3.05 | I99: 19.61 | J99: 130.98 | K99: 139/3 ( 1996г) | L99: 22.41
D100: Блюда из мяса | E100: Котлеты домашние с отрубями (говядина, кура) | F100: 90 | G100: 12.75 | H100: 9.86 | I100: 10.21 | J100: 195.34 | K100: 476 (1997) | L100: 46.08
D101: Гарнир | E101: Рагу из овощей | F101: 150 | G101: 3.01 | H101: 10.06 | I101: 18.5 | J101: 142.54 | K101: 486 (1996) | L101: 20.15
D102: Напиток | E102: Чай с сахором | F102: 200/15 | G102: 0.2 | H102: 0.05 | I102: 14.82 | J102: 57.35 | K102: 685(2004) | L102: 2.95
D103: Покупные | E103: Хлеб пшеничный витаминизированный | F103: 40 | G103: 4.46 | H103: 0.48 | I103: 30.46 | J103: 144.18 | K103: ПРОМ. | L103: 2.88
D104: Покупные | E104: Хлеб ржаной | F104: 20 | G104: 1.29 | H104: 0.24 | I104: 8.17 | J104: 37.9 | K104: ПРОМ. | L104: 1.44
D105: Итого | G105: =SUM(G99:G104) -> 25.45 | H105: 23.74 | I105: 101.77 | J105: 708.29 | L105: =SUM(L99:L104) -> 95.91
C107: Итого за день: | G107: =G97+G105 -> 47.64 | H107: 43.45 | I107: 193.02 | J107: 1288.42 | L107: =L97+L105 -> 159.86
A109: 1 | B109: 2 | C109: Завтрак | D109: Блюда из творога | E109: Запеканка из творога со сгущеным молоком | F109: 50/5 | G109: 7.3 | H109: 6.29 | I109: 11 | J109: 138.08 | K109: 297(1999) | L109: 34.14
D110: Блюда из круп | E110: Каша пшенная вязкая с маслом сливочным | F110: 200/5 | G110: 8.39 | H110: 11.03 | I110: 37.87 | J110: 241.03 | K110: 257(1996) | L110: 23.98
D111: Напиток горячий | E111: Чай с сахором | F111: 200/15 | G111: 0.2 | H111: 0.05 | I111: 14.82 | J111: 57.35 | K111: 685(2004) | L111: 2.95
D112: Покупные | E112: Хлеб пшеничный витаминизированный | F112: 20 | G112: 1.49 | H112: 0.16 | I112: 10.15 | J112: 48.06 | K112: ПРОМ. | L112: 1.44
D113: Покупные | E113: Хлеб ржаной | F113: 20 | G113: 1.29 | H113: 0.24 | I113: 8.17 | J113: 37.9 | K113: ПРОМ. | L113: 1.44
D114: Итого | G114: =SUM(G109:G113) -> 18.67 | H114: 17.77 | I114: 82.01 | J114: 522.42 | L114: =SUM(L109:L113) -> 63.95
C116: Обед | D116: Первое блюдо | E116: Борщ с морской капустой, картофелем, сметаной на бульоне с курой | F116: 250/10 | G116: 1.97 | H116: 7.09 | I116: 14.26 | J116: 123.96 | K116: 110(1996) | L116: 26.98
D117: Блюда из мяса | E117: Тефтели из говядины с отрубями и соусом | F117: 60/50 | G117: 12.33 | H117: 11.59 | I117: 11.62 | J117: 175.99 | K117: 422(1996) | L117: 39.48
D118: Гарнир | E118: Макаронные изделия отварные | F118: 150 | G118: 5.51 | H118: 4.89 | I118: 36.65 | J118: 212.18 | K118: №469 (1996) | L118: 14.31
D119: Напиток | E119: Напиток фруктово-ягодный | F119: 200 | G119: 0.22 | H119: 0.00 | I119: 25.11 | J119: 96.32 | K119: 1041(1982) | L119: 12.26
D120: Покупные | E120: Хлеб пшеничный витаминизированный | F120: 20 | G120: 2.23 | H120: 0.24 | I120: 15.23 | J120: 72.09 | K120: ПРОМ. | L120: 1.44
D121: Покупные | E121: Хлеб ржаной | F121: 20 | G121: 1.29 | H121: 0.24 | I121: 8.17 | J121: 37.9 | K121: ПРОМ. | L121: 1.44
D122: Итого | G122: =SUM(G116:G121) -> 23.55 | H122: 24.05 | I122: 111.04 | J122: 718.44 | L122: =SUM(L116:L121) -> 95.91
C124: Итого за день: | G124: =G114+G122 -> 42.22 | H124: 41.82 | I124: 193.05 | J124: 1240.86 | L124: =L114+L122 -> 159.86
A126: 1 | B126: 3 | C126: Завтрак | D126: Блюда из рыбы | E126: Тефтели рыбные из филе минтая с соусом сметанным, с томатом,отрубями | F126: 70/30 | G126: 9.48 | H126: 10.02 | I126: 17.22 | J126: 165.6 | K126: 394(2004) | L126: 31.87
D127: Гарнир | E127: Пюре картофельное | F127: 150 | G127: 3.21 | H127: 5.33 | I127: 23.4 | J127: 153.04 | K127: 472(1996) | L127: 25.17
D128: Напиток горячий | E128: Чай с сахором | F128: 200/15 | G128: 0.2 | H128: 0.05 | I128: 14.82 | J128: 57.35 | K128: 685(2004) | L128: 2.95
D129: Покупные | E129: Хлеб пшеничный витаминизированный | F129: 20 | G129: 2.23 | H129: 0.24 | I129: 15.23 | J129: 72.09 | K129: ПРОМ. | L129: 2.52
D130: Покупные | E130: Хлеб ржаной | F130: 20 | G130: 1.29 | H130: 0.24 | I130: 8.17 | J130: 37.9 | K130: ПРОМ. | L130: 1.44
D131: Итого | G131: =SUM(G126:G130) -> 16.41 | H131: 15.88 | I131: 78.84 | J131: 485.98 | L131: =SUM(L126:L130) -> 63.95
C133: Обед | D133: Первое блюдо | E133: Щи из свежей капусты с картофелем, сметаной | F133: 250/10 | G133: 4.01 | H133: 7.05 | I133: 11.08 | J133: 112.46 | K133: №120 (1996) | L133: 15.34
D134: Блюда из рыбы | E134: Тефтели рыбные из филе минтая с соусом сметанным, с томатом,отрубями | F134: 70/30 | G134: 9.48 | H134: 10.02 | I134: 17.22 | J134: 165.6 | K134: 394(2004) | L134: 40.6
D135: Гарнир | E135: Пюре картофельное | F135: 150 | G135: 3.21 | H135: 5.33 | I135: 23.4 | J135: 153.04 | K135: 472(1996) | L135: 25.17
D136: Напиток | E136: Компот из кураги | F136: 200 | G136: 1.02 | H136: 0.06 | I136: 28.19 | J136: 106.45 | K136: №588 (1996) | L136: 9.4
D137: Покупные | E137: Хлеб пшеничный витаминизированный | F137: 40 | G137: 4.46 | H137: 0.48 | I137: 30.46 | J137: 144.18 | K137: ПРОМ. | L137: 2.88
D138: Покупные | E138: Хлеб ржаной | F138: 20 | G138: 1.29 | H138: 0.24 | I138: 8.17 | J138: 37.9 | K138: ПРОМ. | L138: 2.52
D139: Итого | G139: =SUM(G133:G138) -> 23.47 | H139: 23.18 | I139: 118.52 | J139: 719.63 | L139: =SUM(L133:L138) -> 95.91
C141: Итого за день: | G141: =G131+G139 -> 39.88 | H141: 39.06 | I141: 197.36 | J141: 1205.61 | L141: =L131+L139 -> 159.86
A143: 1 | B143: 4 | C143: Завтрак | D143: Блюда из круп | E143: Каша пшенная вязкая с маслом сливочным | F143: 200/5 | G143: 8.39 | H143: 10.01 | I143: 35.76 | J143: 267.15 | K143: 257(1996) | L143: 25.02
D144: Напиток горячий | E144: Какао с молоком | F144: 200 | G144: 3.64 | H144: 5.73 | I144: 18.19 | J144: 129.57 | K144: №642 (1996) | L144: 23.51
D145: Фрукт | E145: Фрукты свежие (яблоко) | F145: 100 | G145: 0.38 | H145: 0.35 | I145: 10.56 | J145: 44.45 | L145: 12.54
D146: Покупные | E146: Хлеб пшеничный витаминизированный | F146: 20 | G146: 2.98 | H146: 0.31 | I146: 20.31 | J146: 96.12 | K146: ПРОМ. | L146: 1.44
D147: Покупные | E147: Хлеб ржаной | F147: 20 | G147: 1.29 | H147: 0.24 | I147: 8.17 | J147: 37.9 | K147: ПРОМ. | L147: 1.44
D148: Итого | G148: =SUM(G143:G147) -> 16.68 | H148: 16.64 | I148: 92.99 | J148: 575.19 | L148: =SUM(L143:L147) -> 63.95
C150: Обед | D150: Первое блюдо | E150: Рассольник ленинградский со сметаной | F150: 250/10 | G150: 2.38 | H150: 5.8 | I150: 17.47 | J150: 129.99 | K150: №129 (1996) | L150: 26.18
D151: Блюда из мяса | E151: Фрикадельки в соусе из говядины | F151: 60/50 | G151: 9.97 | H151: 7.38 | I151: 11.97 | J151: 153.93 | K151: 469(2004) | L151: 48.42
D152: Блюда из круп | E152: Каша гречневая вязкая | F152: 150 | G152: 4.52 | H152: 7.42 | I152: 24.31 | J152: 157.92 | K152: 464(1996) | L152: 11.4
D153: Напиток | E153: Компот из смеси сухофруктов | F153: 200 | G153: 0.3 | H153: 3.56 | I153: 19.79 | J153: 88.69 | K153: №588 (1994) | L153: 5.59
D154: Покупные | E154: Хлеб пшеничный витаминизированный | F154: 40 | G154: 4.46 | H154: 0.48 | I154: 30.46 | J154: 144.18 | K154: ПРОМ. | L154: 2.88
D155: Покупные | E155: Хлеб ржаной | F155: 20 | G155: 1.94 | H155: 0.35 | I155: 12.26 | J155: 56.85 | K155: ПРОМ. | L155: 1.44
D156: Итого | G156: =SUM(G150:G155) -> 23.57 | H156: 24.99 | I156: 116.26 | J156: 731.56 | L156: =SUM(L150:L155) -> 95.91
C158: Итого за день: | G158: =G148+G156 -> 40.25 | H158: 41.63 | I158: 209.25 | J158: 1306.75 | L158: =L148+L156 -> 159.86
A160: 1 | B160: 5 | C160: Завтрак | D160: Блюда из мяса | E160: Тефтели из говядины с отрубями и соусом | F160: 50/50 | G160: 7.84 | H160: 7.49 | I160: 10.11 | J160: 136.8 | K160: 422(1996) | L160: 35.85
D161: Гарнир | E161: Макаронные изделия отварные | F161: 150 | G161: 5.51 | H161: 4.89 | I161: 36.65 | J161: 212.18 | K161: 755(1982) | L161: 14.31
D162: Фрукт | E162: Помидор пикантный | F162: 2025-03-30 | G162: 0.32 | H162: 3 | I162: 1.53 | J162: 34.05 | K162: ттк | L162: 6.03
D163: Напиток | E163: Чай с лимоном | F163: 200/15/7 | G163: 0.26 | H163: 0.06 | I163: 12.23 | J163: 48.74 | K163: 686(2004) | L163: 4.75
D164: Покупные | E164: Хлеб пшеничный витаминизированный | F164: 20 | G164: 2.23 | H164: 0.24 | I164: 15.23 | J164: 72.09 | K164: ПРОМ. | L164: 1.57
D165: Покупные | E165: Хлеб ржаной | F165: 20 | G165: 1.29 | H165: 0.24 | I165: 8.17 | J165: 37.9 | K165: ПРОМ. | L165: 1.44
D166: Итого | G166: =SUM(G160:G165) -> 17.45 | H166: 15.92 | I166: 83.92 | J166: 541.76 | L166: =SUM(L160:L165) -> 59.2
C168: Обед | D168: Первое блюдо | E168: Суп из овощей со сметаной | F168: 250/10 | G168: 2.21 | H168: 6.33 | I168: 13.34 | J168: 116.09 | K168: 167(1996) | L168: 17.87
D169: Блюда из куры | E169: Филе цыплят тушенное в сметанном соусе | F169: 50/50 | G169: 15.02 | H169: 9.73 | I169: 6.88 | J169: 171.1 | K169: 493(2004) | L169: 54.47
D170: Блюда из круп | E170: Рис припущенный с куркумой | F170: 150 | G170: 3.64 | H170: 6.77 | I170: 35.6 | J170: 216.45 | K170: 466(1996) | L170: 14.31
D171: Напиток | E171: Напиток из плодов шиповника | F171: 200 | G171: 0.31 | H171: 0.14 | I171: 26.07 | J171: 99.27 | K171: 705(2004) | L171: 5.86
D172: Покупные | E172: Хлеб пшеничный витаминизированный | F172: 20 | G172: 2.98 | H172: 0.31 | I172: 20.31 | J172: 96.12 | K172: ПРОМ. | L172: 1.96
D173: Покупные | E173: Хлеб ржаной | F173: 20 | G173: 1.94 | H173: 0.35 | I173: 12.26 | J173: 56.85 | K173: ПРОМ. | L173: 1.44
D174: Итого | G174: =SUM(G168:G173) -> 26.1 | H174: 23.63 | I174: 114.46 | J174: 755.88 | L174: =SUM(L168:L173) -> 95.91
C176: Итого за день: | G176: =G166+G174 -> 43.55 | H176: 39.55 | I176: 198.38 | J176: 1297.64 | L176: =L166+L174 -> 155.11

Sheet 2025
A1: Школа | C1: МБОУ СОШ №127 | F1: Утвердил: | G1: должность | H1: Директор МБОУ СОШ №127 | M1: @
A2: Типовое примерное меню приготавливаемых блюд | G2: фамилия | H2: Чеботарев С.Н.
A3: Вариант питания | E3: завтрак | H3: 7 | I3: 10 | J3: 2024
E4: 7-11лет | H4: день | I4: месяц | J4: год
A5: Неделя | B5: День недели | C5: Прием пищи | D5: Раздел меню | E5: Блюда | F5: Вес блюда, г | G5: Белки | H5: Жиры | I5: Углеводы | J5: Калорийность | K5: № рецептуры | L5: Цена
A6: 1 | B6: 1 | C6: Завтрак | D6: Холодное блюдо | E6: Бутерброд с сыром (батон) | F6: 10/25 | G6: 4.46 | H6: 3.34 | I6: 13.06 | J6: 100.39 | K6: 3(2004) | L6: 16.12
D7: Блюда из куры | E7: Филе цыплят тушенное в сметанном соусе | F7: 50/50 | G7: 15.02 | H7: 9.73 | I7: 6.88 | J7: 171.1 | K7: 493(2004) | L7: 59.64
D8: Блюда из круп | E8: Рис припущенный с куркумой | F8: 150 | G8: 3.64 | H8: 4.82 | I8: 39.63 | J8: 216.96 | K8: 466(1996) | L8: 19.47
D9: Напиток горячий | E9: Напиток с витаминами "Витошка" | F9: 200 | G9: 0 | H9: 0 | I9: 18.97 | J9: 70.76 | K9: ТТК | L9: 10.07
D10: Покупные | E10: Хлеб пшеничный витаминизированный | F10: 30 | G10: 2.23 | H10: 0.24 | I10: 15.23 | J10: 72.09 | K10: ПРОМ. | L10: 1.8
D11: Покупные | E11: Хлеб ржаной | F11: 20 | G11: 1.29 | H11: 0.24 | I11: 8.17 | J11: 37.9 | K11: ПРОМ. | L11: 1.44
D12: Итого | G12: =SUM(G6:G11) -> 26.64 | H12: 18.37 | I12: 101.94 | J12: 669.2 | L12: =SUM(L6:L11) -> 108.54
C14: Обед | D14: Суп | E14: Суп картофельный с рыбой (филе минтая) | F14: 250/20 | G14: 3.3 | H14: 3.16 | I14: 18.87 | J14: 114.57 | K14: 131(1996) | L14: 34.99
D15: Блюда из куры | E15: Филе цыплят тушенное в сметанном соусе | F15: 60/50 | G15: 10.84 | H15: 10.07 | I15: 5.35 | J15: 156.44 | K15: 493(2004) | L15: 72
D16: Блюда из круп | E16: Сложный гарнир (рис припущенный с куркумой, фасоль отварная с маслом сливочным) | F16: 100/50 | G16: 8.53 | H16: 5.56 | I16: 32.75 | J16: 300.25 | K16: ТТК | L16: 28.19
D17: Напиток | E17: Напиток из брусники | F17: 200 | G17: 2.7 | H17: 2.51 | I17: 39.25 | J17: 163.66 | K17: ТТК | L17: 24.74
D18: Покупные | E18: Хлеб пшеничный витаминизированный | F18: 30 | G18: 2.23 | H18: 0.24 | I18: 15.23 | J18: 72.09 | K18: ПРОМ. | L18: 1.44
D19: Покупные | E19: Хлеб ржаной | F19: 20 | G19: 1.29 | H19: 0.24 | I19: 8.17 | J19: 37.9 | K19: ПРОМ. | L19: 1.44
D20: Итого | G20: =SUM(G14:G19) -> 28.89 | H20: 21.78 | I20: 119.62 | J20: 844.91 | L20: =SUM(L14:L19) -> 162.8
C22: Итого за день: | G22: =G12+G20 -> 55.53 | H22: 40.15 | I22: 221.56 | J22: 1514.11 | L22: =L12+L20 -> 271.34
A24: 1 | B24: 2 | C24: Завтрак | D24: Холодное блюдо | E24: Бутерброд с маслом сливочным (батон) | F24: 10/25 | G24: 1.94 | H24: 8.82 | I24: 13.14 | J24: 139.29 | K24: 3(2004) | L24: 22.87
D25: Блюда из круп | E25: Каша кукурузная молочная вязкая с маслом сливочным | F25: 200/5 | G25: 7.29 | H25: 6.98 | I25: 46 | J25: 267.02 | K25: 257(1996) | L25: 32.97
D26: Покупные | E26: Творожок "Наша Маша" классический | F26: 100 | G26: 9 | H26: 5 | I26: 4 | J26: 96.2 | K26: ПРОМ. | L26: 36.96
D27: Напиток | E27: Кофейный напиток с молоком | F27: 200 | G27: 1.95 | H27: 1.45 | I27: 19.52 | J27: 95.17 | K27: 692(2004) | L27: 12.86
D28: Покупные | E28: Хлеб пшеничный витаминизированный | F28: 30 | G28: 2.23 | H28: 0.24 | I28: 15.23 | J28: 72.09 | K28: ПРОМ. | L28: 1.44
D29: Покупные | E29: Хлеб ржаной | F29: 20 | G29: 1.29 | H29: 0.24 | I29: 8.17 | J29: 37.9 | K29: ПРОМ. | L29: 1.44
D30: Итого | G30: =SUM(G24:G29) -> 23.7 | H30: 22.73 | I30: 106.06 | J30: 707.67 | L30: =SUM(L24:L29) -> 108.54
C32: Обед | D32: Первое блюдо | E32: Борщ с морской капустой, картофелем, сметаной | F32: 250/10 | G32: 1.97 | H32: 7.09 | I32: 14.26 | J32: 123.96 | K32: МР сб.тк.ч3 скат.218 | L32: 18.09
D33: Блюда из мяса | E33: Гуляш из говядины | F33: 50/50 | G33: 15.63 | H33: 12.15 | I33: 4.01 | J33: 187.31 | K33: 401(1996) | L33: 102.99
D34: Гарнир | E34: Макаронные изделия отварные | F34: 150 | G34: 5.51 | H34: 4.89 | I34: 38.65 | J34: 212.18 | K34: №469 (1996) | L34: 12.42
D35: Напиток | E35: Напиток вишневый | F35: 200 | G35: 0.47 | H35: 2.61 | I35: 20.29 | J35: 88.24 | K35: ТТК | L35: 26.42
D36: Покупные | E36: Хлеб пшеничный витаминизированный | F36: 30 | G36: 2.23 | H36: 0.24 | I36: 15.23 | J36: 72.09 | K36: ПРОМ. | L36: 1.44
D37: Покупные | E37: Хлеб ржаной | F37: 20 | G37: 1.29 | H37: 0.24 | I37: 8.17 | J37: 37.9 | K37: ПРОМ. | L37: 1.44
D38: Итого | G38: =SUM(G32:G37) -> 27.1 | H38: 27.22 | I38: 100.61 | J38: 721.68 | L38: =SUM(L32:L37) -> 162.8
C40: Итого за день: | G40: =G30+G38 -> 50.8 | H40: 49.95 | I40: 206.67 | J40: 1429.35 | L40: =L30+L38 -> 271.34
A42: 1 | B42: 3 | C42: Завтрак | D42: Овощи | E42: Огурчик пикантный | F42: 2025-02-20 | G42: 0.16 | H42: 1.98 | I42: 0.69 | J42: 20.74 | K42: ТТК | L42: 9.76
D43: Блюда из рыбы | E43: Рыба, запеченная в омлете (филе минтая) | F43: 90 | G43: 13.97 | H43: 7.46 | I43: 8.63 | J43: 154.38 | K43: 33(2001) | L43: 60.73
D44: Гарнир | E44: Пюре картофельное(гарнир) | F44: 150 | G44: 3.21 | H44: 5.33 | I44: 23.4 | J44: 153.04 | K44: 472(1996) | L44: 29.25
D45: Напиток горячий | E45: Чай с лимоном | F45: 200/15/7 | G45: 0.26 | H45: 0.06 | I45: 15.16 | J45: 59.16 | K45: 686(2004) | L45: 4.84
D46: Покупные | E46: Хлеб пшеничный витаминизированный | F46: 30 | G46: 2.23 | H46: 0.24 | I46: 15.23 | J46: 72.23 | K46: ПРОМ. | L46: 2.16
D47: Покупные | E47: Хлеб ржаной | F47: 20 | G47: 1.29 | H47: 0.24 | I47: 8.17 | J47: 37.9 | K47: ПРОМ. | L47: 1.8
D48: Итого | G48: =SUM(G42:G47) -> 21.12 | H48: 15.31 | I48: 71.28 | J48: 497.45 | L48: =SUM(L42:L47) -> 108.54
C50: Обед | D50: Первое блюдо | E50: Суп картофельный с макаронными изделиями на бульоне с курой | F50: 250 | G50: 6.74 | H50: 2 | I50: 19.61 | J50: 135.98 | K50: 139/3 ( 1996г) | L50: 25.67
D51: Блюда из рыбы | E51: Рыба запеченая под молочным соусом с сыром (филе минтая) | F51: 90 | G51: 13.72 | H51: 9.72 | I51: 9.07 | J51: 175.21 | K51: 320(1996) | L51: 77.27
D52: Гарнир | E52: Пюре картофельное(гарнир) | F52: 150 | G52: 3.21 | H52: 7.33 | I52: 23.4 | J52: 153.04 | K52: 472(1996) | L52: 29.25
D53: Гарнир | E53: Горошек зеленый консервированный отварной (дополнительный гарнир) | F53: 30 | G53: 0.43 | H53: 3.91 | I53: 3.94 | J53: 26.49 | K53: 468(1996) | L53: 18.1
D54: Напиток | E54: Компот из кураги | F54: 200 | G54: 1.02 | H54: 0.06 | I54: 28.19 | J54: 106.45 | K54: №588 (1996) | L54: 9.27
D55: Покупные | E55: Хлеб пшеничный витаминизированный | F55: 30 | G55: 2.23 | H55: 0.24 | I55: 15.23 | J55: 72.09 | K55: ПРОМ. | L55: 1.8
D56: Покупные | E56: Хлеб ржаной | F56: 20 | G56: 1.29 | H56: 0.24 | I56: 8.17 | J56: 37.9 | K56: ПРОМ. | L56: 1.44
D57: Итого | G57: =SUM(G50:G56) -> 28.64 | H57: 23.5 | I57: 107.61 | J57: 707.16 | L57: =SUM(L50:L56) -> 162.8
C59: Итого за день: | G59: =G48+G57 -> 49.76 | H59: 38.81 | I59: 178.89 | J59: 1204.61 | L59: =L48+L57 -> 271.34
A61: 1 | B61: 4 | C61: Завтрак | D61: Блюда из круп | E61: Каша "Янтарная" (из пшена с яблоками) | F61: 250 | G61: 10.31 | H61: 14.97 | I61: 51.09 | J61: 376.91 | K61: 261(1996) | L61: 59.81
D62: Мучные изделия | E62: Блины классические со сгущеным молоком | F62: 50/10 | G62: 5.02 | H62: 7.2 | I62: 5.44 | J62: 105.66 | K62: ТТК | L62: 21.88
D63: Напиток горячий | E63: Какао с молоком | F63: 200 | G63: 3.94 | H63: 3.16 | I63: 21.39 | J63: 123.86 | K63: №642 (1996) | L63: 25.41
D64: Покупные | E64: Хлеб пшеничный витаминизированный | F64: 20 | G64: 1.49 | H64: 0.16 | I64: 10.15 | J64: 48.06 | K64: ПРОМ. | L64: 1.44
D66: Итого | G66: =SUM(G61:G65) -> 20.76 | H66: 25.49 | I66: 88.07 | J66: 654.49 | L66: =SUM(L61:L65) -> 108.54
C68: Обед | D68: Первое блюдо | E68: Щи из свежей капусты с картофелем, сметаной | F68: 250/10 | G68: 5.01 | H68: 9.05 | I68: 11.08 | J68: 120.46 | K68: №120 (1996) | L68: 30.4
D69: Второе блюдо | E69: Жаркое по-домашнему | F69: 50/200 | G69: 14.42 | H69: 12.61 | I69: 37.83 | J69: 361.35 | K69: 394)1996) | L69: 118.66
D70: Напиток | E70: Напиток из плодов шиповника | F70: 200 | G70: 0.31 | H70: 0.14 | I70: 26.07 | J70: 99.27 | K70: 705(2004) | L70: 8.7
D71: Покупные | E71: Хлеб пшеничный витаминизированный | F71: 40 | G71: 2.97 | H71: 0.32 | I71: 20.3 | J71: 96.12 | K71: ПРОМ. | L71: 2.88
D72: Покупные | E72: Хлеб ржаной | F72: 20 | G72: 1.29 | H72: 0.24 | I72: 8.17 | J72: 37.9 | K72: ПРОМ. | L72: 2.16
D73: Итого | G73: =SUM(G68:G72) -> 24 | H73: 22.36 | I73: 103.45 | J73: 715.1 | L73: =SUM(L68:L72) -> 162.8
C75: Итого за день: | G75: =G66+G73 -> 44.76 | H75: 47.85 | I75: 191.52 | J75: 1369.59 | L75: =L66+L73 -> 271.34
A77: 1 | B77: 5 | C77: Завтрак | D77: Овощи | E77: Помидор пикантный | F77: 2025-03-30 | G77: 0.32 | H77: 3 | I77: 1.53 | J77: 34.05 | K77: ттк | L77: 9.44
D78: Блюда из птицы | E78: Фрикадельки из курицы с маслом сливочным | F78: 70 | G78: 9.79 | H78: 6.07 | I78: 6.32 | J78: 116.47 | K78: №63(2003) | L78: 48.79
D79: Гарнир | E79: Макароны с сыром | F79: 150 | G79: 9.06 | H79: 11.62 | I79: 31.54 | J79: 267.5 | K79: 274(1996) | L79: 42.46
D80: Напиток горячий | E80: Чай с лимоном | F80: 200/15/7 | G80: 0.26 | H80: 0.06 | I80: 15.16 | J80: 59.88 | K80: 686(2004) | L80: 4.84
D81: Покупные | E81: Хлеб пшеничный витаминизированный | F81: 30 | G81: 2.23 | H81: 0.24 | I81: 15.23 | J81: 72.09 | K81: ПРОМ. | L81: 1.57
D82: Покупные | E82: Хлеб ржаной | F82: 20 | G82: 1.29 | H82: 0.24 | I82: 8.17 | J82: 37.9 | K82: ПРОМ. | L82: 1.44
D83: Итого | G83: =SUM(G77:G82) -> 22.95 | H83: 21.23 | I83: 77.95 | J83: 587.89 | L83: =SUM(L77:L82) -> 108.54
C85: Обед | D85: Первое блюдо | E85: Рассольник ленинградский со сметаной | F85: 250/10 | G85: 2.38 | H85: 5.8 | I85: 19.47 | J85: 129.99 | K85: 129(1996) | L85: 20.37
D86: Блюда из птицы | E86: Фрикадельки из курицы с маслом сливочным | F86: 90 | G86: 20.33 | H86: 8.2 | I86: 5.29 | J86: 176.48 | K86: №63(2003) | L86: 69.4
D87: Гарнир | E87: Макароны с сыром | F87: 150 | G87: 5.06 | H87: 9.62 | I87: 35.54 | J87: 267.5 | K87: 274(1996) | L87: 42.46
D88: Напиток | E88: Напиток вишневый | F88: 200 | G88: 0.47 | H88: 2.61 | I88: 17.29 | J88: 88.24 | K88: ТТК | L88: 26.42
D89: Покупные | E89: Хлеб пшеничный витаминизированный | F89: 30 | G89: 2.23 | H89: 0.24 | I89: 15.23 | J89: 72.09 | K89: ПРОМ. | L89: 2.35
D90: Покупные | E90: Хлеб ржаной | F90: 20 | G90: 1.29 | H90: 0.24 | I90: 8.17 | J90: 37.9 | K90: ПРОМ. | L90: 1.8
D91: Итого | G91: =SUM(G85:G90) -> 31.76 | H91: 26.71 | I91: 100.99 | J91: 772.2 | L91: =SUM(L85:L90) -> 162.8
C93: Итого за день: | G93: =G83+G91 -> 54.71 | H93: 47.94 | I93: 178.94 | J93: 1360.09 | L93: =L83+L91 -> 271.34
A95: 2 | B95: 1 | C95: Завтрак | D95: Холодное блюдо | E95: Бутерброд с сыром (батон) | F95: 10/25 | G95: 4.46 | H95: 3.34 | I95: 13.06 | J95: 100.39 | K95: 3(2004) | L95: 22.34
D96: Блюда из рыбы | E96: Палочки рыбные | F96: 60 | G96: 10.09 | H96: 7.66 | I96: 12.47 | J96: 129.32 | K96: ТТК | L96: 49.23
D97: Гарнир | E97: Пюре картофельное(гарнир) | F97: 150 | G97: 3.21 | H97: 5.33 | I97: 23.4 | J97: 153.04 | K97: 472(1996) | L97: 29.25
D98: Напиток горячий | E98: Чай с лимоном | F98: 200/15/7 | G98: 0.26 | H98: 0.06 | I98: 15.16 | J98: 59.88 | K98: 686(2004) | L98: 4.84
D99: Покупные | E99: Хлеб пшеничный витаминизированный | F99: 30 | G99: 2.23 | H99: 0.24 | I99: 15.23 | J99: 72 | K99: ПРОМ. | L99: 1.44
D100: Покупные | E100: Хлеб ржаной | F100: 20 | G100: 1.29 | H100: 0.24 | I100: 8.17 | J100: 37.9 | K100: ПРОМ. | L100: 1.44
D101: Итого | G101: =SUM(G95:G100) -> 21.54 | H101: 16.87 | I101: 87.49 | J101: 552.53 | L101: =SUM(L95:L100) -> 108.54
C103: Обед | D103: Первое блюдо | E103: Щи из свежей капусты с картофелем, сметаной | F103: 250/10 | G103: 5.01 | H103: 9.05 | I103: 11.08 | J103: 120.46 | K103: №120 (1996) | L103: 30.4
D104: Блюда из рыбы | E104: Палочки рыбные | F104: 90 | G104: 15.14 | H104: 6.99 | I104: 18.7 | J104: 193.98 | K104: ТТК | L104: 63.36
D105: Гарнир | E105: Пюре картофельное(гарнир) | F105: 150 | G105: 3.21 | H105: 5.33 | I105: 23.4 | J105: 153.04 | K105: 472(1996) | L105: 35.1
D106: Напиток | E106: Напиток фруктово-ягодный | F106: 200 | G106: 0.22 | H106: 0 | I106: 20.11 | J106: 96.32 | K106: 685(2004) | L106: 11.06
E107: Выпечка в ассортименте | F107: 50 | G107: 1.26 | H107: 2 | I107: 10.81 | J107: 118.84 | L107: 19.64
D108: Покупные | E108: Хлеб пшеничный витаминизированный | F108: 30 | G108: 2.23 | H108: 0.24 | I108: 15.23 | J108: 72.09 | K108: ПРОМ. | L108: 1.8
D109: Покупные | E109: Хлеб ржаной | F109: 20 | G109: 1.29 | H109: 0.24 | I109: 8.17 | J109: 37.9 | K109: ПРОМ. | L109: 1.44
D110: Итого | G110: =SUM(G103:G109) -> 28.36 | H110: 23.85 | I110: 107.5 | J110: 792.63 | L110: =SUM(L103:L109) -> 162.8
C112: Итого за день: | G112: =G101+G110 -> 49.9 | H112: 40.72 | I112: 194.99 | J112: 1345.16 | L112: =L101+L110 -> 271.34
A114: 2 | B114: 2 | C114: Завтрак | D114: Блюда из птицы | E114: Плов из филе цыплегка с куркумой | F114: 250 | G114: 17.91 | H114: 14.57 | I114: 44.18 | J114: 374.47 | K114: №449(1996) | L114: 65.66
D115: Напиток горячий | E115: Чай с лимоном | F115: 200/15/7 | G115: 0.26 | H115: 0.06 | I115: 15.16 | J115: 59.88 | K115: 686(2004) | L115: 34.8
D116: Покупные | E116: Йогурт | F116: 125 | G116: 4.99 | H116: 3.5 | I116: 6.95 | J116: 65.98 | K116: ПРОМ. | L116: 4.84
D117: Покупные | E117: Хлеб пшеничный витаминизированный | F117: 30 | G117: 2.23 | H117: 0.24 | I117: 15.23 | J117: 72.09 | K117: ПРОМ. | L117: 1.8
D118: Покупные | E118: Хлеб ржаной | F118: 20 | G118: 1.29 | H118: 0.24 | I118: 8.17 | J118: 37.9 | K118: ПРОМ. | L118: 1.44
D119: Итого | G119: =SUM(G114:G118) -> 26.68 | H119: 18.61 | I119: 89.69 | J119: 610.32 | L119: =SUM(L114:L118) -> 108.54
C121: Обед | D121: Первое блюдо | E121: Суп пюре из разных овощей с цветной капустой, гренками | F121: 250/10 | G121: 4.27 | H121: 5.5 | I121: 24.4 | J121: 162.14 | K121: 167(1996) | L121: 30.71
D122: Блюда из мяса | E122: Грудка цыпленка тушенная с овощами и соусом "ароматная" | F122: 70/50 | G122: 20.8 | H122: 11.29 | I122: 6.37 | J122: 208.61 | K122: ТТК | L122: 78.27
D123: Гарнир | E123: Каша гречневая вязкая (гарнир) | F123: 150 | G123: 2.52 | H123: 5.42 | I123: 35.31 | J123: 187.92 | K123: 464(1996) | L123: 13.6
D124: Напиток | E124: Напиток из брусники | F124: 200 | G124: 0.7 | H124: 2.51 | I124: 29.25 | J124: 133.66 | K124: ТТК | L124: 24.74
D125: Покупные | E125: Хлеб пшеничный витаминизированный | F125: 30 | G125: 2.23 | H125: 0.24 | I125: 15.23 | J125: 72.09 | K125: ПРОМ. | L125: 1.44
D126: Покупные | E126: Хлеб ржаной | F126: 20 | G126: 1.29 | H126: 0.24 | I126: 8.17 | J126: 37.9 | K126: ПРОМ. | L126: 1.44
D127: Фрукт | E127: Фрукты свежие (яблоко) | F127: 100 | G127: 0.38 | H127: 0.35 | I127: 10.56 | J127: 44.45 | L127: 12.6
D128: Итого | G128: =SUM(G121:G127) -> 32.19 | H128: 25.55 | I128: 129.29 | J128: 846.77 | L128: =SUM(L121:L127) -> 162.8
C130: Итого за день: | G130: =G119+G128 -> 58.87 | H130: 44.16 | I130: 218.98 | J130: 1457.09 | L130: =L119+L128 -> 271.34
A132: 2 | B132: 3 | C132: Завтрак | D132: Блюда из творога | E132: Запеканка(сырники) из творога со сгущеным молоком | F132: 60/5 | G132: 11.14 | H132: 7.41 | I132: 12.67 | J132: 162.29 | K132: 297(1994) | L132: 35.24
D133: Блюда из круп | E133: Каша "Дружба" со сливочным маслом | F133: 200/5 | G133: 7.13 | H133: 7.45 | I133: 44.27 | J133: 270.82 | K133: 35(2003) | L133: 45.01
D134: Напиток горячий | E134: Какао с молоком | F134: 200 | G134: 3.94 | H134: 3.16 | I134: 21.39 | J134: 123.86 | K134: №642 (1996) | L134: 25.41
D135: Покупные | E135: Хлеб пшеничный витаминизированный | F135: 30 | G135: 2.23 | H135: 0.24 | I135: 15.23 | J135: 72.09 | K135: ПРОМ. | L135: 1.44
D136: Покупные | E136: Хлеб ржаной | F136: 20 | G136: 1.29 | H136: 0.24 | I136: 8.17 | J136: 37.9 | K136: ПРОМ. | L136: 1.44
D137: Итого | G137: =SUM(G132:G136) -> 25.73 | H137: 18.5 | I137: 101.73 | J137: 666.96 | L137: =SUM(L132:L136) -> 108.54
C139: Обед | D139: Овощи | E139: Овощи свежие (в нарезке) | F139: 60 | G139: 0.56 | H139: 0.09 | I139: 2.26 | J139: 12.31 | K139: 572(2004) | L139: 25.96
D140: Первое блюдо | E140: Борщ с морской капустой, картофелем, сметаной | F140: 250/10 | G140: 1.97 | H140: 7.09 | I140: 14.26 | J140: 123.96 | K140: МР сб.тк.ч3 скат.218 | L140: 20.61
D141: Блюда из мяса | E141: Индейка тушеная | F141: 100 | G141: 14.49 | H141: 10.93 | I141: 6.37 | J141: 180.14 | K141: ТТК | L141: 90.09
D142: Гарнир | E142: Рис по турецки с вермишелью | F142: 150 | G142: 4.05 | H142: 4.95 | I142: 38.68 | J142: 216.81 | K142: ТТК | L142: 13.99
D143: Напиток | E143: Компот из кураги | F143: 200 | G143: 1.02 | H143: 0.06 | I143: 28.19 | J143: 106.45 | K143: №588 (1996) | L143: 9.27
D144: Покупные | E144: Хлеб пшеничный витаминизированный | F144: 30 | G144: 2.23 | H144: 0.24 | I144: 15.23 | J144: 72.09 | K144: ПРОМ. | L144: 1.44
D145: Покупные | E145: Хлеб ржаной | F145: 20 | G145: 1.29 | H145: 0.24 | I145: 8.17 | J145: 37.9 | K145: ПРОМ. | L145: 1.44
D146: Итого | G146: =SUM(G139:G145) -> 25.61 | H146: 23.6 | I146: 113.16 | J146: 749.66 | L146: =SUM(L139:L145) -> 162.8
C148: Итого за день: | G148: =G137+G146 -> 51.34 | H148: 42.1 | I148: 214.89 | J148: 1416.62 | L148: =L137+L146 -> 271.34
A150: 2 | B150: 4 | C150: Завтрак | D150: Овощи | E150: Огурчик пикантный | F150: 15 | G150: 0.12 | H150: 1.48 | I150: 0.52 | J150: 15.55 | K150: ТТК | L150: 7.56
D151: Блюда из мяса | E151: Ежики с рисом (говядина, кура) | F151: 90 | G151: 13.32 | H151: 8.03 | I151: 12.94 | J151: 176.15 | K151: 562(2014) | L151: 69.57
D152: Гарнир | E152: Пюре картофельное(гарнир) | F152: 150 | G152: 3.21 | H152: 5.33 | I152: 23.4 | J152: 153.04 | K152: 472(1996) | L152: 24.78
D153: Напиток горячий | E153: Чай с сахором | F153: 200/15 | G153: 0.2 | H153: 0.05 | I153: 14.82 | J153: 57.35 | K153: 685(2004) | L153: 3.03
D154: Покупные | E154: Хлеб пшеничный витаминизированный | F154: 30 | G154: 2.23 | H154: 0.24 | I154: 15.23 | J154: 72.09 | K154: ПРОМ. | L154: 2.16
D155: Покупные | E155: Хлеб ржаной | F155: 20 | G155: 1.29 | H155: 0.24 | I155: 8.17 | J155: 37.9 | K155: ПРОМ. | L155: 1.44
D156: Итого | G156: =SUM(G150:G155) -> 20.37 | H156: 15.37 | I156: 75.08 | J156: 512.08 | L156: =SUM(L150:L155) -> 108.54
C158: Обед | D158: Первое блюдо | E158: Рассольник ленинградский со сметаной | F158: 250/10 | G158: 2.38 | H158: 5.8 | I158: 19.47 | J158: 129.99 | K158: 129(1996) | L158: 29.38
D159: Блюда из мяса | E159: Ежики с рисом (говядина, кура) | F159: 90 | G159: 13.32 | H159: 8.03 | I159: 12.94 | J159: 186.15 | K159: 562(2014) | L159: 77.54
D160: Гарнир | E160: Пюре картофельное(гарнир) | F160: 150 | G160: 3.21 | H160: 5.33 | I160: 23.4 | J160: 153.04 | K160: 472(1996) | L160: 24.78
D161: Напиток | E161: Напиток вишневый | F161: 200 | G161: 0.47 | H161: 2.61 | I161: 17.29 | J161: 98.24 | K161: ТТК | L161: 26.42
D162: Покупные | E162: Хлеб пшеничный витаминизированный | F162: 40 | G162: 2.97 | H162: 0.32 | I162: 20.3 | J162: 96.12 | K162: ПРОМ. | L162: 2.52
D163: Покупные | E163: Хлеб ржаной | F163: 20 | G163: 1.29 | H163: 0.24 | I163: 8.17 | J163: 37.9 | K163: ПРОМ. | L163: 2.16
D164: Итого | G164: =SUM(G158:G163) -> 23.64 | H164: 22.33 | I164: 101.57 | J164: 701.44 | L164: =SUM(L158:L163) -> 162.8
C166: Итого за день: | G166: =G156+G164 -> 44.01 | H166: 37.7 | I166: 176.65 | J166: 1213.52 | L166: =L156+L164 -> 271.34
A168: 2 | B168: 5 | C168: Завтрак | D168: Блюда из яиц | E168: Омлет натуральный с маслом сливочным | F168: 150/5 | G168: 15.23 | H168: 20.01 | I168: 2.8 | J168: 251.71 | K168: №284 (1996) | L168: 59.35
D169: Напиток горячий | E169: Чай с лимоном | F169: 200/15/7 | G169: 0.26 | H169: 0.06 | I169: 15.16 | J169: 59.88 | K169: 686(2004) | L169: 28.39
D170: Мучные изделия | E170: Выпечка в ассортименте | F170: 50 | G170: 3.08 | H170: 1.52 | I170: 30.39 | J170: 144.66 | L170: 5.46
D171: Фрукт | E171: Фрукты свежие (яблоко) | F171: 100 | G171: 0.38 | H171: 0.35 | I171: 10.56 | J171: 44.45 | L171: 12.6
D172: Покупные | E172: Хлеб пшеничный витаминизированный | F172: 20 | G172: 1.49 | H172: 0.16 | I172: 10.15 | J172: 48.06 | K172: ПРОМ. | L172: 2.74
D173: Итого | F173: =SUM(F168:F172) -> 170 | G173: 20.44 | H173: 22.1 | I173: 69.06 | J173: 548.76 | L173: =SUM(L168:L172) -> 108.54
C175: Обед | D175: Первое блюдо | E175: Суп картофельный с горохом, гренками | F175: 250/10 | G175: 4.98 | H175: 4.8 | I175: 29.18 | J175: 184.2 | K175: 139(2004) | L175: 12.32
D176: Блюда из мяса | E176: Бефстроганов из говядины | F176: 50/50 | G176: 10.8 | H176: 13.7 | I176: 6.24 | J176: 242.28 | K176: 423(2004) | L176: 116.31
D177: Гарнир | E177: Макаронные изделия отварные | F177: 150 | G177: 5.51 | H177: 4.89 | I177: 36.65 | J177: 212.18 | K177: №469 (1996) | L177: 20.1
D178: Напиток | E178: Напиток фруктово-ягодный | F178: 200 | G178: 0.22 | H178: 0 | I178: 20.11 | J178: 96.32 | K178: 685(2004) | L178: 11.06
D179: Покупные | E179: Хлеб пшеничный витаминизированный | F179: 30 | G179: 2.23 | H179: 0.24 | I179: 15.23 | J179: 72.09 | K179: ПРОМ. | L179: 1.57
D180: Покупные | E180: Хлеб ржаной | F180: 20 | G180: 1.94 | H180: 0.24 | I180: 8.17 | J180: 37.9 | K180: ПРОМ. | L180: 1.44
D181: Итого | G181: =SUM(G175:G180) -> 25.68 | H181: 23.87 | I181: 115.58 | J181: 844.97 | L181: =SUM(L175:L180) -> 162.8
C183: Итого за день: | G183: =G173+G181 -> 46.12 | H183: 45.97 | I183: 184.64 | J183: 1393.73 | L183: =L173+L181 -> 271.34
